fUSD/lending_fUSD_20250812
["ID","MTS","AMOUNT","RATE_DAILY","PERIOD"]
[378809194,1755030653946,-150.0,0.00035053,2]
[378809195,1755030653957,-150.0,0.00035063,2]
[378809196,1755030653966,-999.0,0.00035068,120]
[378809197,1755030653976,-150.53,0.00035092,60]
[378809198,1755030653985,-168.0,0.00035098,2]
[378809199,1755030653995,-226.19,0.00035109,2]
[378809200,1755030654005,-150.0,0.00035119,2]
[378809201,1755030654014,-245.99982813,0.00035151,15]
[378809202,1755030654023,-150.53,0.00035192,60]
[378809203,1755030654032,-570.74,0.00035274,60]
[378809204,1755030654041,-150.53,0.00035292,60]
[378809205,1755030654052,-6799.38,0.000353,14]
[378809206,1755030654061,-150.0,0.00035345,2]
[378809207,1755030654070,-750.08,0.00035379,120]
[378809208,1755030654079,-530.32,0.00035383,13]
[378809209,1755030654088,-150.53,0.00035392,60]
[378809210,1755030654099,-150.0,0.00035408,2]
[378809211,1755030654110,-150.0,0.00035437,2]
[378809212,1755030654121,-150.0,0.00035471,2]
[378809213,1755030654130,-150.0,0.00035479,2]
[378809214,1755030654139,-150.53,0.00035492,60]
[378809215,1755030654148,-255.83,0.000355,14]
[378809216,1755030654157,-809.4196171,0.00035562,7]
[378809217,1755030654166,-150.0,0.00035573,2]
[378809218,1755030654175,-150.53,0.00035592,60]
[378809219,1755030654184,-150.0,0.0003561,2]
[378809220,1755030654193,-150.0,0.00035615,2]
[378809221,1755030654202,-2114.94,0.00035616,120]
[378809222,1755030654211,-2114.94,0.00035616,120]
[378809223,1755030654221,-2114.94,0.00035616,120]
[378809224,1755030654230,-2114.94,0.00035616,120]
[378809225,1755030654241,-2114.94,0.00035616,120]
[378809226,1755030654251,-2114.94,0.00035616,120]
[378809227,1755030654260,-2114.94,0.00035616,120]
[378809228,1755030654269,-2114.94,0.00035616,120]
[378809229,1755030654278,-2114.94,0.00035616,120]
[378809230,1755030654287,-2114.94,0.00035616,120]
[378809231,1755030654296,-2114.94,0.00035616,120]
[378809232,1755030654306,-2114.94,0.00035616,120]
[378809233,1755030654316,-2114.94,0.00035616,120]
[378809234,1755030654325,-2114.94,0.00035616,120]
[378809235,1755030654334,-2114.94,0.00035616,120]
[378809236,1755030654343,-2114.94,0.00035616,120]
[378809237,1755030654352,-2900.0,0.00035616,120]
[378809238,1755030654361,-2061.78,0.00035616,30]
[378809239,1755030654371,-150.0,0.00035618,2]
[378809240,1755030654381,-150.0,0.00035624,120]
[378809241,1755030654390,-150.53,0.00035692,60]
[378809242,1755030654399,-150.0,0.00035696,2]
[378809243,1755030654408,-150.0,0.00035713,2]
[378809244,1755030654418,-150.0,0.00035733,2]
[378809245,1755030654427,-150.0,0.00035743,2]
[378809246,1755030654436,-150.53,0.00035792,60]
[378809247,1755030654445,-167.33,0.000358,30]
[378809248,1755030654454,-150.0,0.0003585,2]
[378809249,1755030654463,-150.0,0.00035854,2]
[378809250,1755030654476,-165.14,0.00035877,2]
[378809251,1755030654486,-152.972285,0.0003589,2]
[378809252,1755030654496,-150.53,0.00035892,60]
[378809253,1755030654505,-150.0,0.00035893,2]
[378809254,1755030654514,-255.82,0.000359,14]
[378809255,1755030654523,-150.0,0.00035902,2]
[378809256,1755030654532,-150.0,0.00035917,2]
[378809257,1755030654541,-317.17678052,0.00035929,2]
[378809258,1755030654552,-530.32,0.00035931,14]
[378809259,1755030654562,-150.0,0.00035949,2]
[378809260,1755030654570,-2114.94,0.00035965,120]
[378809261,1755030654579,-893.0,0.00035966,2]
[378809262,1755030654588,-259.13,0.00035966,2]
[378809263,1755030654597,-810.0,0.00035966,2]
[378809264,1755030654605,-3380.964,0.00035966,2]
[378809265,1755030654614,-1253.0,0.00035966,2]
[378809266,1755030654624,-2033.501,0.00035966,2]
[378809267,1755030654632,-150.0,0.00035969,2]
[378809268,1755030654819,-150.53,0.00035992,60]
[378809269,1755030654829,-65060.98,0.00036,30]
[378809270,1755030654844,-1800.0,0.00036,37]
[378809271,1755030654861,-300.0,0.00036,120]
[378809272,1755030654871,-1322.0,0.00036,30]
[378809273,1755030654880,-38843.37893748,0.00036,120]
[378809274,1755030654890,-1000.0,0.00036,7]
[378809275,1755030654899,-5027.89404615,0.00036013,2]
[378809276,1755030654908,-2699.97538567,0.00036024,2]
[378809277,1755030654917,-150.0,0.00036052,2]
[378809278,1755030654926,-150.0,0.0003608,2]
[378809279,1755030654935,-150.0,0.00036091,2]
[378809280,1755030654944,-150.53,0.00036092,60]
[378809281,1755030654953,-150.0,0.00036101,2]
[378809282,1755030654963,-1000.0,0.00036112,2]
[378809283,1755030654971,-168.0,0.00036139,2]
[378809284,1755030654979,-1292.69462952,0.00036164,5]
[378809285,1755030654988,-1292.69462951,0.00036164,5]
[378809286,1755030654997,-999.0,0.00036164,120]
[378809287,1755030655007,-150.53,0.00036192,60]
[378809288,1755030655016,-150.0,0.00036197,120]
[378809289,1755030655026,-150.0,0.00036197,2]
[378809290,1755030655035,-150.0,0.00036203,2]
[378809291,1755030655044,-294.0,0.0003622,2]
[378809292,1755030655053,-150.0,0.00036248,2]
[378809293,1755030655063,-150.0,0.00036255,2]
[378809294,1755030655072,-150.0,0.00036261,2]
[378809295,1755030655081,-150.0,0.00036276,2]
[378809296,1755030655090,-150.0,0.00036282,2]
[378809297,1755030655099,-150.0,0.00036284,2]
[378809298,1755030655108,-150.0,0.00036287,2]
[378809299,1755030655117,-298.26089446,0.00036287,2]
[378809300,1755030655127,-150.53,0.00036292,60]
[378809301,1755030655136,-6799.38,0.000363,14]
[378809302,1755030655145,-150.0,0.00036313,2]
[378809303,1755030655154,-150.0,0.0003633,2]
[378809304,1755030655163,-150.0,0.00036362,120]
[378809305,1755030655171,-150.0,0.0003638,2]
[378809306,1755030655180,-168.0,0.00036391,2]
[378809307,1755030655189,-150.53,0.00036392,60]
[378809308,1755030655198,-150.0,0.00036452,2]
[378809309,1755030655208,-168.0,0.00036464,2]
[378809310,1755030655217,-226.19,0.00036479,2]
[378809311,1755030655226,-530.32,0.00036479,15]
[378809312,1755030655235,-150.53,0.00036492,60]
[378809313,1755030655244,-263.90215849,0.000365,2]
[378809314,1755030655253,-150.0,0.00036502,2]
[378809315,1755030655262,-150.0,0.00036511,2]
[378809316,1755030655271,-150.0,0.00036521,2]
[378809317,1755030655280,-150.0,0.00036573,2]
[378809318,1755030655289,-150.53,0.00036592,60]
[378809319,1755030655298,-150.0,0.00036604,2]
[378809320,1755030655307,-150.0,0.00036629,2]
[378809321,1755030655317,-150.0,0.00036631,2]
[378809322,1755030655326,-150.0,0.00036636,2]
[378809323,1755030655336,-150.0,0.0003665,2]
[378809324,1755030655344,-150.0,0.00036684,120]
[378809325,1755030655353,-150.53,0.00036692,60]
[378809326,1755030655362,-531.43758747,0.000367,120]
[378809327,1755030655372,-150.0,0.00036707,2]
[378809328,1755030655381,-203.0,0.0003676,2]
[378809329,1755030655391,-168.0,0.00036786,2]
[378809330,1755030655400,-150.0,0.00036792,2]
[378809331,1755030655410,-150.53,0.00036792,60]
[378809332,1755030655419,-150.0,0.00036817,2]
[378809333,1755030655429,-65706.46467813,0.0003688,120]
[378809334,1755030655438,-150.0,0.00036885,2]
[378809335,1755030655447,-2731.02270107,0.00036888,60]
[378809336,1755030655456,-150.53,0.00036892,60]
[378809337,1755030655466,-4000.0,0.000369,120]
[378809338,1755030655475,-5102.65154916,0.000369,120]
[378809339,1755030655488,-150.0,0.00036901,2]
[378809340,1755030655497,-150.0,0.00036906,2]
[378809341,1755030655506,-150.0,0.00036914,120]
[378809342,1755030655516,-570.74,0.00036924,60]
[378809343,1755030655527,-150.0,0.00036934,2]
[378809344,1755030655536,-158.43363361,0.00036942,7]
[378809345,1755030655545,-150.0,0.00036973,2]
[378809346,1755030655555,-165.657,0.00036976,2]
[378809347,1755030655565,-150.029,0.00036976,2]
[378809348,1755030655574,-150.0,0.00036976,2]
[378809349,1755030655584,-150.0,0.00036976,2]
[378809350,1755030655594,-150.0,0.00036976,2]
[378809351,1755030655603,-150.037,0.00036976,2]
[378809352,1755030655612,-150.0,0.00036976,2]
[378809353,1755030655624,-150.0,0.00036976,2]
[378809354,1755030655634,-205.24,0.00036976,2]
[378809355,1755030655643,-1000.0,0.00036986,120]
[378809356,1755030655652,-150.53,0.00036992,60]
[378809357,1755030655661,-2114.94,0.00036999,120]
[378809358,1755030655670,-300.0,0.00037,120]
[378809359,1755030655679,-160.3860932,0.00037,35]
[378809360,1755030655688,-1322.0,0.00037,30]
[378809361,1755030655698,-105400.16284245,0.00037,30]
[378809362,1755030655708,-255.82,0.00037,14]
[378809363,1755030655717,-41866.0,0.00037,2]
[378809364,1755030655727,-1129.0,0.00037,60]
[378809365,1755030655735,-1800.0,0.00037,38]
[378809366,1755030655745,-150.0,0.00037009,2]
[378809367,1755030655754,-150.0,0.00037016,2]
[378809368,1755030655763,-530.32,0.00037027,16]
[378809369,1755030655771,-150.0,0.00037036,2]
[378809370,1755030655780,-150.0,0.00037044,2]
[378809371,1755030655789,-150.53,0.00037092,60]
[378809372,1755030655799,-150.0,0.000371,2]
[378809373,1755030655808,-150.0,0.00037135,2]
[378809374,1755030655818,-150.0,0.00037165,2]
[378809375,1755030655827,-150.53,0.00037192,60]
[378809376,1755030655836,-150.0,0.00037207,2]
[378809377,1755030655845,-150.0,0.00037225,2]
[378809378,1755030655855,-999.0,0.0003726,120]
[378809379,1755030655864,-150.0,0.00037264,2]
[378809380,1755030655876,-150.0,0.00037278,2]
[378809381,1755030655885,-150.53,0.00037292,60]
[378809382,1755030655895,-150.0,0.00037325,2]
[378809383,1755030655904,-1000.0,0.00037325,7]
[378809384,1755030655913,-150.0,0.00037364,2]
[378809385,1755030655923,-150.0,0.00037366,2]
[378809386,1755030655932,-1444.0,0.0003737,120]
[378809387,1755030655942,-287.0,0.0003739,2]
[378809388,1755030655951,-150.53,0.00037392,60]
[378809389,1755030655962,-150.0,0.00037393,2]
[378809390,1755030655971,-1503.09052,0.000374,24]
[378809391,1755030655980,-280.0,0.000374,30]
[378809392,1755030655990,-280.0,0.000374,30]
[378809393,1755030655999,-440.4624162,0.00037427,2]
[378809394,1755030656009,-669.6595442,0.00037427,2]
[378809395,1755030656019,-2699.97538567,0.00037427,2]
[378809396,1755030656029,-5027.89404615,0.00037427,2]
[378809397,1755030656039,-1146.55741472,0.00037427,2]
[378809398,1755030656049,-150.0,0.0003743,2]
[378809399,1755030656058,-150.0,0.00037464,2]
[378809400,1755030656068,-153.03117123,0.00037481,120]
[378809401,1755030656077,-350.0,0.00037481,120]
[378809402,1755030656087,-211856.288909,0.0003749,30]
[378809403,1755030656096,-200.0,0.0003749,120]
[378809404,1755030656105,-150.53,0.00037492,60]
[378809405,1755030656115,-2000.0,0.000375,60]
[378809406,1755030656126,-187.6681802,0.00037501,2]
[378809407,1755030656136,-187.6681802,0.00037501,2]
[378809408,1755030656145,-150.0,0.00037511,2]
[378809409,1755030656154,-588.34589712,0.00037516,30]
[378809410,1755030656164,-4972.26312659,0.00037516,30]
[378809411,1755030656175,-880.36026614,0.00037518,7]
[378809412,1755030656187,-151.0,0.00037518,7]
[378809413,1755030656198,-151.0,0.00037518,7]
[378809414,1755030656215,-151.0,0.00037518,7]
[378809415,1755030656225,-151.0,0.00037518,7]
[378809416,1755030656234,-2114.94,0.00037523,120]
[378809417,1755030656243,-2114.94,0.00037523,120]
[378809418,1755030656253,-2114.94,0.00037523,120]
[378809419,1755030656262,-2114.94,0.00037523,120]
[378809420,1755030656272,-2114.94,0.00037523,120]
[378809421,1755030656282,-2115.14839335,0.00037523,120]
[378809422,1755030656291,-3220.34131534,0.00037527,2]
[378809423,1755030656301,-30194.22575625,0.00037527,2]
[378809424,1755030656310,-30409.5404613,0.00037527,2]
[378809425,1755030656321,-23010.29045175,0.00037527,2]
[378809426,1755030656330,-402219.57093575,0.00037527,2]
[378809427,1755030656340,-936243.03886984,0.00037527,90]
[378809428,1755030656349,-1000.0,0.00037527,31]
[378809429,1755030656358,-500.0,0.00037527,30]
[378809430,1755030656367,-300.0,0.00037527,30]
[378809431,1755030656380,-586972.38854204,0.00037527,30]
[378809432,1755030656389,-1122.33553263,0.00037527,2]
[378809433,1755030656398,-968.17911307,0.00037527,7]
[378809434,1755030656408,-500.0,0.00037529,30]
[378809435,1755030656417,-500.0,0.00037529,30]
[378809436,1755030656426,-500.0,0.00037529,30]
[378809437,1755030656435,-211.05,0.00037529,30]
[378809438,1755030656444,-530.32,0.00037575,17]
[378809439,1755030656454,-150.53,0.00037592,60]
[378809440,1755030656463,-309.29654756,0.00037656,2]
[378809441,1755030656475,-230.4,0.00037671,120]
[378809442,1755030656485,-203.0,0.0003768,2]
[378809443,1755030656494,-150.53,0.00037692,60]
[378809444,1755030656503,-150.0,0.00037733,120]
[378809445,1755030656515,-150.53,0.00037792,60]
[378809446,1755030656524,-226.19,0.00037849,2]
[378809447,1755030656533,-150.53,0.00037892,60]
[378809448,1755030656543,-300.0,0.000379,13]
[378809449,1755030656555,-245.99982813,0.00037964,15]
[378809450,1755030656564,-150.53,0.00037992,60]
[378809451,1755030656574,-86000.0,0.00038,120]
[378809452,1755030656583,-151.0,0.00038,120]
[378809453,1755030656592,-300.0,0.00038,120]
[378809454,1755030656601,-154.0,0.00038,120]
[378809455,1755030656610,-1000.0,0.00038,3]
[378809456,1755030656621,-1800.0,0.00038,39]
[378809457,1755030656630,-150.19,0.0003808,2]
[378809458,1755030656640,-150.53,0.00038092,60]
[378809459,1755030656649,-530.32,0.00038123,18]
[378809460,1755030656659,-350.0,0.00038166,120]
[378809461,1755030656668,-150.0,0.0003818,120]
[378809462,1755030656677,-150.53,0.00038192,60]
[378809463,1755030656687,-150.53,0.00038292,60]
[378809464,1755030656696,-400.0,0.00038356,120]
[378809465,1755030656706,-999.0,0.00038356,120]
[378809466,1755030656715,-1000.0,0.00038356,120]
[378809467,1755030656725,-150.53,0.00038392,120]
[378809468,1755030656734,-150.53,0.00038492,120]
[378809469,1755030656744,-150.0,0.0003854,120]
[378809470,1755030656753,-281.0,0.0003856,2]
[378809471,1755030656762,-570.74,0.00038574,60]
[378809472,1755030656772,-150.53,0.00038592,120]
[378809473,1755030656781,-203.0,0.000386,2]
[378809474,1755030656790,-2189.84,0.000386,2]
[378809475,1755030656800,-530.32,0.0003867,19]
[378809476,1755030656810,-8488.81,0.00038678,2]
[378809477,1755030656820,-669.65954416,0.0003868,2]
[378809478,1755030656830,-150.53,0.00038692,120]
[378809479,1755030656839,-150.53,0.00038792,120]
[378809480,1755030656848,-3121.84618899,0.00038799,120]
[378809481,1755030656858,-2122.34793992,0.00038799,120]
[378809482,1755030656867,-2611.15879031,0.00038799,120]
[378809483,1755030656880,-500.0,0.0003888,120]
[378809484,1755030656890,-150.53,0.00038892,120]
[378809485,1755030656899,-1000.0,0.000389,2]
[378809486,1755030656909,-1000.0,0.000389,2]
[378809487,1755030656917,-1000.0,0.000389,2]
[378809488,1755030656927,-1000.0,0.000389,2]
[378809489,1755030656936,-1000.0,0.000389,2]
[378809490,1755030656945,-1000.0,0.000389,2]
[378809491,1755030656954,-750.08,0.00038916,120]
[378809492,1755030656963,-150.0,0.00038953,120]
[378809493,1755030656973,-893.0,0.00038966,2]
[378809494,1755030656982,-602.53,0.0003899,2]
[378809495,1755030656992,-609.17,0.0003899,2]
[378809496,1755030657001,-150.53,0.00038992,120]
[378809497,1755030657011,-1009.7500285,0.00039,40]
[378809498,1755030657020,-320.74051982,0.00039025,2]
[378809499,1755030657030,-150.53,0.00039092,120]
[378809500,1755030657039,-1435.18393196,0.00039178,30]
[378809501,1755030657048,-150.53,0.00039192,120]
[378809502,1755030657057,-226.19,0.00039218,2]
[378809503,1755030657066,-530.32,0.00039218,20]
[378809504,1755030657076,-3121.84618899,0.00039278,120]
[378809505,1755030657085,-2122.34793992,0.00039278,120]
[378809506,1755030657094,-2611.15879031,0.00039278,120]
[378809507,1755030657104,-150.53,0.00039292,120]
[378809508,1755030657113,-6799.38,0.000393,14]
[378809509,1755030657122,-937.02820838,0.0003938,120]
[378809510,1755030657131,-150.53,0.00039392,120]
[378809511,1755030657140,-5167.79464497,0.00039393,30]
[378809512,1755030657149,-151.0,0.000394,120]
[378809513,1755030657158,-999.0,0.00039452,120]
[378809514,1755030657167,-150.53,0.00039492,120]
[378809515,1755030657176,-150.0,0.00039493,120]
[378809516,1755030657186,-208.0,0.000395,30]
[378809517,1755030657195,-203.0,0.0003952,2]
[378809518,1755030657204,-150.0,0.00039557,120]
[378809519,1755030657213,-150.53,0.00039592,120]
[378809520,1755030657223,-150.0,0.00039688,120]
[378809521,1755030657232,-150.53,0.00039692,120]
[378809522,1755030657242,-274.0,0.0003972,2]
[378809523,1755030657251,-1000.0,0.00039723,2]
[378809524,1755030657260,-1000.0,0.00039726,120]
[378809525,1755030657269,-3121.84618899,0.00039757,120]
[378809526,1755030657279,-2122.34793992,0.00039757,120]
[378809527,1755030657288,-2611.15879031,0.00039757,120]
[378809528,1755030657297,-530.32,0.00039766,21]
[378809529,1755030657485,-150.53,0.00039792,120]
[378809530,1755030657495,-2189.84,0.000398,2]
[378809531,1755030657505,-154.0,0.000398,120]
[378809532,1755030657515,-150.0,0.00039848,120]
[378809533,1755030657525,-187.6681802,0.00039873,2]
[378809534,1755030657535,-1000.0,0.00039874,31]
[378809535,1755030657544,-150.53,0.00039892,120]
[378809536,1755030657554,-2847.17113486,0.000399,3]
[378809537,1755030657564,-1944.07481071,0.00039921,14]
[378809538,1755030657573,-669.65954416,0.00039932,120]
[378809539,1755030657582,-2500.0,0.00039966,14]
[378809540,1755030657591,-150.0,0.00039976,2]
[378809541,1755030657600,-150.0,0.00039976,2]
[378809542,1755030657610,-150.0,0.00039976,2]
[378809543,1755030657621,-150.0,0.00039976,2]
[378809544,1755030657631,-150.53,0.00039992,120]
[378809545,1755030657645,-300.0,0.0004,120]
[378809546,1755030657655,-2003.0,0.0004,60]
[378809547,1755030657665,-150.0,0.0004,120]
[378809548,1755030657674,-502.58841024,0.0004,120]
[378809549,1755030657684,-200.0,0.0004,120]
[378809550,1755030657694,-843.0035059,0.0004,10]
[378809551,1755030657703,-317.76,0.0004,30]
[378809552,1755030657713,-167.34,0.0004,30]
[378809553,1755030657722,-150.53,0.00040092,120]
[378809554,1755030657731,-201.078489,0.000401,19]
[378809555,1755030657741,-1146.55741467,0.00040168,2]
[378809556,1755030657750,-317.17678052,0.00040186,28]
[378809557,1755030657759,-150.53,0.00040192,120]
[378809558,1755030657768,-2189.84,0.000402,2]
[378809559,1755030657777,-3121.84618899,0.00040236,120]
[378809560,1755030657786,-2122.34793992,0.00040236,120]
[378809561,1755030657795,-2611.15879031,0.00040236,120]
[378809562,1755030657805,-150.53,0.00040292,120]
[378809563,1755030657814,-530.32,0.00040314,22]
[378809564,1755030657823,-150.53,0.00040392,120]
[378809565,1755030657833,-332.60791905,0.00040394,2]
[378809566,1755030657843,-208.0,0.0004042,30]
[378809567,1755030657852,-203.0,0.0004045,2]
[378809568,1755030657861,-150.53,0.00040492,120]
[378809569,1755030657871,-999.0,0.00040547,120]
[378809570,1755030657880,-226.19,0.00040588,2]
[378809571,1755030657890,-150.53,0.00040592,120]
[378809572,1755030657900,-847709.9029962,0.00040595,4]
[378809573,1755030657909,-150.53,0.00040692,120]
[378809574,1755030657918,-1367.41085798,0.00040715,120]
[378809575,1755030657936,-1754.43533101,0.00040715,120]
[378809576,1755030657945,-1245.37900887,0.00040715,120]
[378809577,1755030657955,-876.96893105,0.00040715,120]
[378809578,1755030657965,-2611.15879031,0.00040715,120]
[378809579,1755030657974,-200.0,0.0004075,55]
[378809580,1755030657983,-20291.82217103,0.00040773,14]
[378809581,1755030657999,-23069.69520379,0.00040773,14]
[378809582,1755030658010,-3512.80595253,0.00040773,14]
[378809583,1755030658021,-4825.44843196,0.00040773,14]
[378809584,1755030658032,-13791.76640982,0.00040773,14]
[378809585,1755030658047,-44425.96771062,0.00040773,14]
[378809586,1755030658057,-245.99982813,0.00040777,15]
[378809587,1755030658067,-187.6681802,0.00040788,2]
[378809588,1755030658076,-150.53,0.00040792,120]
[378809589,1755030658085,-151.0,0.000408,120]
[378809590,1755030658094,-200.02,0.000408,71]
[378809591,1755030658104,-5800.0,0.00040816,14]
[378809592,1755030658113,-5800.0,0.00040824,14]
[378809593,1755030658123,-5800.0,0.00040833,14]
[378809594,1755030658132,-530.32,0.00040862,23]
[378809595,1755030658141,-152.972285,0.00040879,2]
[378809596,1755030658151,-267.0,0.0004089,2]
[378809597,1755030658160,-150.53,0.00040892,120]
[378809598,1755030658169,-22655.62983715,0.000409,30]
[378809599,1755030658179,-376.83763009,0.000409,120]
[378809600,1755030658188,-376.83763001,0.000409,120]
[378809601,1755030658197,-376.83763001,0.000409,120]
[378809602,1755030658207,-376.83763001,0.000409,120]
[378809603,1755030658216,-376.83763001,0.000409,120]
[378809604,1755030658226,-376.83763001,0.000409,120]
[378809605,1755030658235,-376.83763001,0.000409,120]
[378809606,1755030658244,-376.83763001,0.000409,120]
[378809607,1755030658253,-376.83763001,0.000409,120]
[378809608,1755030658262,-376.83763001,0.000409,120]
[378809609,1755030658271,-376.83763001,0.000409,120]
[378809610,1755030658280,-376.83763001,0.000409,120]
[378809611,1755030658288,-376.83763001,0.000409,120]
[378809612,1755030658297,-376.83763001,0.000409,120]
[378809613,1755030658306,-376.83763001,0.000409,120]
[378809614,1755030658315,-376.83763001,0.000409,120]
[378809615,1755030658324,-376.83763001,0.000409,120]
[378809616,1755030658334,-376.83763001,0.000409,120]
[378809617,1755030658343,-376.83763001,0.000409,120]
[378809618,1755030658352,-376.83763001,0.000409,120]
[378809619,1755030658362,-507.29674638,0.00040986,14]
[378809620,1755030658371,-150.53,0.00040992,120]
[378809621,1755030658381,-1000.0,0.00040999,30]
[378809622,1755030658390,-6810.93,0.00041,14]
[378809623,1755030658399,-210.64239636,0.00041,60]
[378809624,1755030658408,-4220.0,0.00041,120]
[378809625,1755030658416,-250.37592355,0.00041,2]
[378809626,1755030658425,-10000.0,0.00041,30]
[378809627,1755030658434,-5000.0,0.00041,8]
[378809628,1755030658443,-3199.541301,0.00041,45]
[378809629,1755030658452,-255.83,0.00041,14]
[378809630,1755030658462,-500.0,0.00041083,120]
[378809631,1755030658473,-500.0,0.00041083,120]
[378809632,1755030658483,-500.0,0.00041083,120]
[378809633,1755030658492,-500.0,0.00041083,120]
[378809634,1755030658502,-500.0,0.00041083,120]
[378809635,1755030658512,-500.0,0.00041083,120]
[378809636,1755030658523,-500.0,0.00041083,120]
[378809637,1755030658536,-500.0,0.00041083,120]
[378809638,1755030658546,-500.0,0.00041083,120]
[378809639,1755030658557,-500.0,0.00041083,120]
[378809640,1755030658567,-150.53,0.00041092,120]
[378809641,1755030658577,-300.0,0.00041095,120]
[378809642,1755030658586,-493.10227302,0.00041095,120]
[378809643,1755030658595,-1000.0,0.00041095,120]
[378809644,1755030658605,-1000.0,0.00041095,120]
[378809645,1755030658614,-1000.0,0.00041095,120]
[378809646,1755030658625,-1000.0,0.00041095,120]
[378809647,1755030658634,-1000.0,0.00041095,120]
[378809648,1755030658644,-1000.0,0.00041095,120]
[378809649,1755030658653,-1000.0,0.00041095,120]
[378809650,1755030658662,-230.4,0.00041096,120]
[378809651,1755030658671,-150.0,0.00041096,7]
[378809652,1755030658680,-531.84482941,0.000411,2]
[378809653,1755030658689,-152.0,0.00041137,3]
[378809654,1755030658698,-391.0,0.0004114,30]
[378809655,1755030658708,-391.0,0.0004114,30]
[378809656,1755030658718,-669.65954416,0.00041185,120]
[378809657,1755030658728,-150.53,0.00041192,120]
[378809658,1755030658738,-3121.84618899,0.00041194,120]
[378809659,1755030658747,-2122.34793992,0.00041194,120]
[378809660,1755030658756,-2611.15879031,0.00041194,120]
[378809661,1755030658766,-150.0,0.00041199,120]
[378809662,1755030658776,-1184.72,0.00041217,120]
[378809663,1755030658785,-150.0,0.00041261,120]
[378809664,1755030658795,-150.53,0.00041292,120]
[378809665,1755030658805,-444.4,0.000413,2]
[378809666,1755030658814,-536.267845,0.000413,46]
[378809667,1755030658823,-5012.02563,0.00041335,30]
[378809668,1755030658833,-208.0,0.0004135,30]
[378809669,1755030658843,-800.0,0.0004137,13]
[378809670,1755030658852,-800.0,0.0004137,13]
[378809671,1755030658861,-800.0,0.0004137,13]
[378809672,1755030658871,-800.0,0.0004137,13]
[378809673,1755030658882,-800.0,0.0004137,13]
[378809674,1755030658892,-800.0,0.0004137,13]
[378809675,1755030658902,-800.0,0.0004137,13]
[378809676,1755030658913,-800.0,0.0004137,13]
[378809677,1755030658924,-800.0,0.0004137,13]
[378809678,1755030658939,-800.0,0.0004137,13]
[378809679,1755030658955,-800.0,0.0004137,13]
[378809680,1755030658964,-800.0,0.0004137,13]
[378809681,1755030658974,-800.0,0.0004137,13]
[378809682,1755030658983,-800.0,0.0004137,13]
[378809683,1755030658993,-800.0,0.0004137,13]
[378809684,1755030659002,-800.0,0.0004137,13]
[378809685,1755030659011,-800.0,0.0004137,13]
[378809686,1755030659020,-800.0,0.0004137,13]
[378809687,1755030659030,-800.0,0.0004137,13]
[378809688,1755030659039,-800.0,0.0004137,13]
[378809689,1755030659048,-800.0,0.0004137,13]
[378809690,1755030659057,-800.0,0.0004137,13]
[378809691,1755030659067,-800.0,0.0004137,13]
[378809692,1755030659076,-663.0,0.0004137,13]
[378809693,1755030659086,-150.0,0.0004137,7]